[Event "*** Titled Tuesday Blitz"]
[Site "Chess.com"]
[Date "2021.03.30"]
[Round "1"]
[White "Das_Virus_2020"]
[Black "Bigfish1995"]
[Result "0-1"]
[WhiteElo "2472"]
[BlackElo "3021"]
[TimeControl "180+1"]
[EndTime "10:06:38 PDT"]
[Termination "Bigfish1995 won on time"]

1. e4 {[%clk 0:02:59.9]} 1... Nc6 {[%clk 0:02:57.1]} 2. Nc3 {[%clk 0:02:58.1]}
2... e5 {[%clk 0:02:53.5]} 3. g3 {[%clk 0:02:58]} 3... g6 {[%clk 0:02:52.5]} 4.
Bg2 {[%clk 0:02:57.9]} 4... Bg7 {[%clk 0:02:52.9]} 5. Nge2 {[%clk 0:02:58.5]}
5... d6 {[%clk 0:02:52.2]} 6. O-O {[%clk 0:02:58.7]} 6... h5 {[%clk 0:02:52]} 7.
h3 {[%clk 0:02:53.3]} 7... h4 {[%clk 0:02:50.5]} 8. g4 {[%clk 0:02:53.1]} 8...
g5 {[%clk 0:02:31.2]} 9. Nd5 {[%clk 0:02:46.9]} 9... Nge7 {[%clk 0:02:29.9]} 10.
c4 {[%clk 0:02:36.9]} 10... Ng6 {[%clk 0:02:22.9]} 11. d3 {[%clk 0:02:25.2]}
11... Be6 {[%clk 0:02:20]} 12. Ne3 {[%clk 0:02:22]} 12... Nf4 {[%clk 0:02:15.5]}
13. Nf5 {[%clk 0:02:14.9]} 13... Bf6 {[%clk 0:02:12.3]} 14. Be3 {[%clk
0:02:08.9]} 14... Qd7 {[%clk 0:02:02.3]} 15. Bxf4 {[%clk 0:02:02.5]} 15... exf4
{[%clk 0:02:00.4]} 16. Qd2 {[%clk 0:01:40.6]} 16... Ne5 {[%clk 0:01:57.6]} 17.
Ned4 {[%clk 0:01:22.9]} 17... c5 {[%clk 0:01:12.4]} 18. Nf3 {[%clk 0:01:14.1]}
18... Nc6 {[%clk 0:01:12.2]} 19. Rac1 {[%clk 0:01:03.8]} 19... Kf8 {[%clk
0:01:10.3]} 20. b3 {[%clk 0:01:01.5]} 20... a6 {[%clk 0:01:08]} 21. d4 {[%clk
0:00:43.1]} 21... Bxf5 {[%clk 0:01:03.6]} 22. exf5 {[%clk 0:00:42.8]} 22... cxd4
{[%clk 0:00:59.8]} 23. a3 {[%clk 0:00:28.4]} 23... Kg7 {[%clk 0:00:59.1]} 24. b4
{[%clk 0:00:28.5]} 24... Rhe8 {[%clk 0:00:56]} 25. b5 {[%clk 0:00:25.2]} 25...
axb5 {[%clk 0:00:45.5]} 26. cxb5 {[%clk 0:00:26.1]} 26... Na5 {[%clk 0:00:45.3]}
27. Nxd4 {[%clk 0:00:24.5]} 27... d5 {[%clk 0:00:45.6]} 28. Rc5 {[%clk
0:00:16.1]} 28... Nc4 {[%clk 0:00:40.7]} 29. Qc3 {[%clk 0:00:13.3]} 29... Rxa3
{[%clk 0:00:39.1]} 0-1

[Event "*** Titled Tuesday Blitz"]
[Site "Chess.com"]
[Date "2021.03.30"]
[Round "1"]
[White "XDPS"]
[Black "ChainsOfFantasia"]
[Result "1-0"]
[WhiteElo "2796"]
[BlackElo "2419"]
[TimeControl "180+1"]
[EndTime "10:06:39 PDT"]
[Termination "XDPS won by resignation"]

1. d4 {[%clk 0:03:00.9]} 1... Nf6 {[%clk 0:02:58.4]} 2. Nf3 {[%clk 0:03:00.3]}
2... d5 {[%clk 0:02:57.8]} 3. Bf4 {[%clk 0:03:00.2]} 3... c5 {[%clk 0:02:58.1]}
4. e3 {[%clk 0:03:00.3]} 4... Nc6 {[%clk 0:02:58.3]} 5. Nbd2 {[%clk 0:02:59.7]}
5... cxd4 {[%clk 0:02:58.4]} 6. exd4 {[%clk 0:02:59.8]} 6... Bf5 {[%clk
0:02:59]} 7. c3 {[%clk 0:03:00.4]} 7... e6 {[%clk 0:02:58.8]} 8. Qb3 {[%clk
0:03:00.5]} 8... Bd6 {[%clk 0:02:58.8]} 9. Bxd6 {[%clk 0:03:00.4]} 9... Qxd6
{[%clk 0:02:59.5]} 10. Qxb7 {[%clk 0:03:01.1]} 10... O-O {[%clk 0:02:58.1]} 11.
Qa6 {[%clk 0:03:01.2]} 11... Rab8 {[%clk 0:02:43.9]} 12. b3 {[%clk 0:02:59.9]}
12... Rfc8 {[%clk 0:02:37.7]} 13. Be2 {[%clk 0:02:51.8]} 13... Qc7 {[%clk
0:02:21.1]} 14. O-O {[%clk 0:02:47.5]} 14... Ne4 {[%clk 0:02:16.5]} 15. Nxe4
{[%clk 0:02:23.2]} 15... Bxe4 {[%clk 0:02:17.4]} 16. Qa4 {[%clk 0:02:13.3]}
16... h6 {[%clk 0:02:10.5]} 17. Rac1 {[%clk 0:02:12.9]} 17... Ne7 {[%clk
0:02:04.6]} 18. Ne5 {[%clk 0:02:04]} 18... f6 {[%clk 0:02:02.4]} 19. Nd7 {[%clk
0:02:03.1]} 19... Ra8 {[%clk 0:01:46.7]} 20. Nc5 {[%clk 0:02:02.7]} 20... Bf5
{[%clk 0:01:40.3]} 21. Rfe1 {[%clk 0:02:02.7]} 21... Ng6 {[%clk 0:01:39.8]} 22.
g3 {[%clk 0:02:00.4]} 22... e5 {[%clk 0:01:37.7]} 23. Ba6 {[%clk 0:01:56]} 23...
Re8 {[%clk 0:01:34.1]} 24. Bb7 {[%clk 0:01:53.5]} 24... Rad8 {[%clk 0:01:33.2]}
25. Bxd5+ {[%clk 0:01:53.6]} 25... Kh7 {[%clk 0:01:31]} 26. Qc6 {[%clk
0:01:45.7]} 26... Qa5 {[%clk 0:01:25.5]} 27. Nb7 {[%clk 0:01:41.1]} 27... Qxa2
{[%clk 0:01:21.3]} 28. Nxd8 {[%clk 0:01:39.9]} 28... Rxd8 {[%clk 0:01:21.8]} 29.
Be4 {[%clk 0:01:32.9]} 29... Bxe4 {[%clk 0:01:16.2]} 30. Qxe4 {[%clk 0:01:33.8]}
30... Qxb3 {[%clk 0:01:16.7]} 31. dxe5 {[%clk 0:01:33.2]} 31... fxe5 {[%clk
0:01:17.6]} 32. Ra1 {[%clk 0:01:25.5]} 32... Qxc3 {[%clk 0:01:00.7]} 33. Ra6
{[%clk 0:01:19.1]} 33... Qd3 {[%clk 0:01:00.9]} 34. Rxa7 {[%clk 0:01:14.6]}
34... Qxe4 {[%clk 0:00:55.2]} 35. Rxe4 {[%clk 0:01:14.5]} 35... Rd6 {[%clk
0:00:56.1]} 36. h4 {[%clk 0:01:13.5]} 36... h5 {[%clk 0:00:55.1]} 37. Rf7 {[%clk
0:01:11.6]} 37... Kh6 {[%clk 0:00:51.1]} 38. Kg2 {[%clk 0:01:09.5]} 38... Rc6
{[%clk 0:00:50.5]} 39. Rb7 {[%clk 0:01:04.2]} 39... Re6 {[%clk 0:00:49]} 40.
Reb4 {[%clk 0:00:59.4]} 40... Ne7 {[%clk 0:00:45.7]} 41. R7b6 {[%clk 0:00:58.2]}
41... Rxb6 {[%clk 0:00:44.8]} 42. Rxb6+ {[%clk 0:00:59.1]} 42... Kh7 {[%clk
0:00:45]} 43. Re6 {[%clk 0:00:59.4]} 43... Ng6 {[%clk 0:00:41.9]} 44. Kf3 {[%clk
0:00:59.2]} 44... Nf8 {[%clk 0:00:39.4]} 45. Rxe5 {[%clk 0:00:56.6]} 45... Kg6
{[%clk 0:00:40.3]} 46. Ra5 {[%clk 0:00:54.4]} 46... Nd7 {[%clk 0:00:40.2]} 47.
Kf4 {[%clk 0:00:54.8]} 47... Nf6 {[%clk 0:00:39.6]} 48. f3 {[%clk 0:00:55.2]}
48... Kf7 {[%clk 0:00:39.3]} 49. Kg5 {[%clk 0:00:54.5]} 1-0

[Event "*** Titled Tuesday Blitz"]
[Site "Chess.com"]
[Date "2021.03.30"]
[Round "1"]
[White "eljanov"]
[Black "Keks2017"]
[Result "1/2-1/2"]
[WhiteElo "2868"]
[BlackElo "2462"]
[TimeControl "180+1"]
[EndTime "10:06:42 PDT"]
[Termination "Game drawn by repetition"]

1. c4 {[%clk 0:02:58.8]} 1... d6 {[%clk 0:02:59]} 2. d4 {[%clk 0:02:57.7]} 2...
e5 {[%clk 0:02:58.6]} 3. Nf3 {[%clk 0:02:57.9]} 3... Nd7 {[%clk 0:02:57.7]} 4.
Nc3 {[%clk 0:02:57.4]} 4... Ngf6 {[%clk 0:02:57.6]} 5. g3 {[%clk 0:02:55.2]}
5... g6 {[%clk 0:02:56.8]} 6. Bg2 {[%clk 0:02:55.4]} 6... Bg7 {[%clk 0:02:56.8]}
7. O-O {[%clk 0:02:55.9]} 7... O-O {[%clk 0:02:56.6]} 8. e4 {[%clk 0:02:56.3]}
8... exd4 {[%clk 0:02:56.5]} 9. Nxd4 {[%clk 0:02:56.1]} 9... Re8 {[%clk
0:02:56.5]} 10. Re1 {[%clk 0:02:55.5]} 10... a6 {[%clk 0:02:56.4]} 11. a4 {[%clk
0:02:46.9]} 11... Nc5 {[%clk 0:02:46.6]} 12. a5 {[%clk 0:02:42.8]} 12... Bd7
{[%clk 0:02:35.5]} 13. f3 {[%clk 0:02:10.2]} 13... Ne6 {[%clk 0:02:26]} 14. Be3
{[%clk 0:02:04.6]} 14... Nxd4 {[%clk 0:02:24]} 15. Bxd4 {[%clk 0:02:05]} 15...
Be6 {[%clk 0:02:24]} 16. b3 {[%clk 0:02:02.5]} 16... c5 {[%clk 0:02:21.5]} 17.
Bf2 {[%clk 0:01:05.9]} 17... Ng4 {[%clk 0:02:18.6]} 18. Qd2 {[%clk 0:01:04.8]}
18... Nxf2 {[%clk 0:02:15.9]} 19. Kxf2 {[%clk 0:01:05.7]} 19... f5 {[%clk
0:01:55.7]} 20. Ra2 {[%clk 0:01:01.5]} 20... h5 {[%clk 0:01:33.6]} 21. Kg1
{[%clk 0:00:51.4]} 21... h4 {[%clk 0:01:27.2]} 22. Ne2 {[%clk 0:00:41]} 22...
fxe4 {[%clk 0:01:24.1]} 23. fxe4 {[%clk 0:00:40.6]} 23... hxg3 {[%clk
0:01:23.2]} 24. hxg3 {[%clk 0:00:40.3]} 24... Be5 {[%clk 0:01:20.1]} 25. Rf1
{[%clk 0:00:35.4]} 25... Rf8 {[%clk 0:01:03.3]} 26. Qh6 {[%clk 0:00:27.5]} 26...
Rxf1+ {[%clk 0:00:59.9]} 27. Bxf1 {[%clk 0:00:28.4]} 27... Qf6 {[%clk
0:00:57.5]} 28. Nf4 {[%clk 0:00:28.4]} 28... Bf7 {[%clk 0:00:43.4]} 29. Rh2
{[%clk 0:00:26.2]} 29... Qg7 {[%clk 0:00:42]} 30. Qg5 {[%clk 0:00:22.5]} 30...
Re8 {[%clk 0:00:38.2]} 31. Bg2 {[%clk 0:00:17.2]} 31... Qf6 {[%clk 0:00:31.4]}
32. Qh6 {[%clk 0:00:16.4]} 32... Qg7 {[%clk 0:00:31.3]} 33. Qg5 {[%clk
0:00:16.8]} 33... Qf6 {[%clk 0:00:30.2]} 34. Qh6 {[%clk 0:00:17.2]} 34... Qg7
{[%clk 0:00:30.2]} 35. Qg5 {[%clk 0:00:17.4]} 1/2-1/2

[Event "*** Titled Tuesday Blitz"]
[Site "Chess.com"]
[Date "2021.03.30"]
[Round "1"]
[White "CheckThis4"]
[Black "Agoking701"]
[Result "1-0"]
[WhiteElo "2617"]
[BlackElo "2318"]
[TimeControl "180+1"]
[EndTime "10:06:42 PDT"]
[Termination "CheckThis4 won by resignation"]

1. e4 {[%clk 0:03:00.9]} 1... c6 {[%clk 0:02:59.3]} 2. d4 {[%clk 0:02:59.5]}
2... d5 {[%clk 0:03:00.2]} 3. e5 {[%clk 0:02:59.8]} 3... c5 {[%clk 0:02:56.4]}
4. Nf3 {[%clk 0:02:57.4]} 4... Nc6 {[%clk 0:02:51]} 5. c4 {[%clk 0:02:56.8]}
5... e6 {[%clk 0:02:47.9]} 6. Nc3 {[%clk 0:02:55.2]} 6... cxd4 {[%clk
0:02:27.1]} 7. Nxd4 {[%clk 0:02:54.6]} 7... Bb4 {[%clk 0:02:24.7]} 8. Nxc6
{[%clk 0:02:49.3]} 8... bxc6 {[%clk 0:02:25.6]} 9. Qa4 {[%clk 0:02:45.8]} 9...
Rb8 {[%clk 0:02:25.6]} 10. cxd5 {[%clk 0:02:43.5]} 10... exd5 {[%clk 0:02:13.4]}
11. Qxc6+ {[%clk 0:02:17.2]} 11... Qd7 {[%clk 0:01:42.1]} 12. Qxd7+ {[%clk
0:02:13.8]} 12... Bxd7 {[%clk 0:01:43]} 13. Bd2 {[%clk 0:01:55.2]} 13... d4
{[%clk 0:01:40.6]} 14. Ne4 {[%clk 0:01:55.1]} 14... Bxd2+ {[%clk 0:01:39.8]} 15.
Kxd2 {[%clk 0:01:54.1]} 15... Rxb2+ {[%clk 0:01:37.6]} 16. Kd3 {[%clk
0:01:54.2]} 16... Bf5 {[%clk 0:01:34.6]} 17. g4 {[%clk 0:01:44.6]} 17... Bxe4+
{[%clk 0:01:21.3]} 18. Kxe4 {[%clk 0:01:45.5]} 18... Ne7 {[%clk 0:01:18.4]} 19.
f4 {[%clk 0:01:36.4]} 19... O-O {[%clk 0:01:15.9]} 20. Bc4 {[%clk 0:01:35]}
20... Rd8 {[%clk 0:01:10]} 21. Rad1 {[%clk 0:01:30.2]} 21... Nc6 {[%clk
0:01:05.5]} 22. h4 {[%clk 0:01:21.3]} 22... Kf8 {[%clk 0:01:05.2]} 23. h5 {[%clk
0:01:21]} 23... h6 {[%clk 0:01:05]} 24. Rh3 {[%clk 0:01:14.4]} 24... Ke7 {[%clk
0:00:56.9]} 25. Rb3 {[%clk 0:01:11.4]} 25... Rxb3 {[%clk 0:00:54.9]} 26. axb3
{[%clk 0:01:10.4]} 26... Rb8 {[%clk 0:00:45.6]} 27. Bd5 {[%clk 0:01:04.5]} 27...
Nb4 {[%clk 0:00:38.8]} 28. Bc4 {[%clk 0:01:02.6]} 28... Nc6 {[%clk 0:00:37.3]}
29. Ra1 {[%clk 0:00:59.9]} 29... Rb6 {[%clk 0:00:34.1]} 30. Ra4 {[%clk 0:00:55]}
30... Rb8 {[%clk 0:00:31.5]} 31. Ra6 {[%clk 0:00:53.5]} 31... Rc8 {[%clk
0:00:22.7]} 32. Bd5 {[%clk 0:00:50.4]} 32... Nb4 {[%clk 0:00:19.1]} 33. Rxa7+
{[%clk 0:00:50.2]} 33... Ke8 {[%clk 0:00:17.2]} 34. Bxf7+ {[%clk 0:00:48.8]}
34... Kf8 {[%clk 0:00:17.2]} 35. Bc4 {[%clk 0:00:48]} 35... Rd8 {[%clk
0:00:15.2]} 36. Rf7+ {[%clk 0:00:44.5]} 36... Ke8 {[%clk 0:00:14.5]} 37. Rxg7
{[%clk 0:00:44.6]} 37... d3 {[%clk 0:00:13.9]} 38. Rg8+ {[%clk 0:00:44.6]} 38...
Ke7 {[%clk 0:00:13.9]} 39. Rxd8 {[%clk 0:00:44.5]} 39... Kxd8 {[%clk 0:00:13.3]}
40. Bxd3 {[%clk 0:00:44.8]} 1-0

[Event "*** Titled Tuesday Blitz"]
[Site "Chess.com"]
[Date "2021.03.30"]
[Round "1"]
[White "Kapibara_Warri0r"]
[Black "davidkalashian"]
[Result "0-1"]
[WhiteElo "2230"]
[BlackElo "2545"]
[TimeControl "180+1"]
[EndTime "10:06:42 PDT"]
[Termination "davidkalashian won by resignation"]

1. d4 {[%clk 0:03:00.9]} 1... Nf6 {[%clk 0:02:57.5]} 2. c4 {[%clk 0:03:01.2]}
2... e6 {[%clk 0:02:55.5]} 3. Nc3 {[%clk 0:03:01.7]} 3... Bb4 {[%clk 0:02:54.5]}
4. e3 {[%clk 0:03:02.4]} 4... c5 {[%clk 0:02:54]} 5. Bd2 {[%clk 0:03:01]} 5...
O-O {[%clk 0:02:53.7]} 6. a3 {[%clk 0:03:01]} 6... Bxc3 {[%clk 0:02:50]} 7. Bxc3
{[%clk 0:03:01]} 7... Ne4 {[%clk 0:02:50.5]} 8. Qc2 {[%clk 0:03:01.2]} 8... Nxc3
{[%clk 0:02:46.3]} 9. bxc3 {[%clk 0:03:02.1]} 9... b6 {[%clk 0:02:42.9]} 10. Bd3
{[%clk 0:02:56.6]} 10... h6 {[%clk 0:02:42.7]} 11. Ne2 {[%clk 0:02:53.5]} 11...
Nc6 {[%clk 0:02:41.2]} 12. d5 {[%clk 0:02:49.1]} 12... Na5 {[%clk 0:02:32.4]}
13. Nf4 {[%clk 0:02:41.3]} 13... Ba6 {[%clk 0:02:27.9]} 14. Rd1 {[%clk
0:02:28.5]} 14... Qg5 {[%clk 0:02:04.1]} 15. h4 {[%clk 0:02:13.4]} 15... Qf6
{[%clk 0:01:54.9]} 16. g4 {[%clk 0:01:51.5]} 16... Bxc4 {[%clk 0:01:34.6]} 17.
Bh7+ {[%clk 0:01:33]} 17... Kh8 {[%clk 0:01:31.7]} 18. g5 {[%clk 0:01:33.9]}
18... Qe5 {[%clk 0:01:20.4]} 19. gxh6 {[%clk 0:01:13.3]} 19... gxh6 {[%clk
0:01:20.1]} 20. dxe6 {[%clk 0:00:45.1]} 20... dxe6 {[%clk 0:01:05.1]} 21. Rd7
{[%clk 0:00:37.3]} 21... Rad8 {[%clk 0:00:58]} 22. Bg8 {[%clk 0:00:13.9]} 22...
Kxg8 {[%clk 0:00:28.2]} 23. Rg1+ {[%clk 0:00:08.8]} 23... Kh8 {[%clk 0:00:28.2]}
24. Ng6+ {[%clk 0:00:06.7]} 24... fxg6 {[%clk 0:00:27]} 25. Qxg6 {[%clk
0:00:07.6]} 25... Qxc3+ {[%clk 0:00:26.3]} 26. Kd1 {[%clk 0:00:05.3]} 26...
Rxd7+ {[%clk 0:00:25.7]} 0-1

[Event "*** Titled Tuesday Blitz"]
[Site "Chess.com"]
[Date "2021.03.30"]
[Round "1"]
[White "IMTominho"]
[Black "WPWPWP-2015"]
[Result "1-0"]
[WhiteElo "2861"]
[BlackElo "2449"]
[TimeControl "180+1"]
[EndTime "10:06:45 PDT"]
[Termination "IMTominho won by resignation"]

1. d4 {[%clk 0:03:00.6]} 1... Nf6 {[%clk 0:01:41.5]} 2. c4 {[%clk 0:02:59]} 2...
e6 {[%clk 0:01:40.9]} 3. Nf3 {[%clk 0:02:59.2]} 3... d5 {[%clk 0:01:39.6]} 4.
Nc3 {[%clk 0:02:58.9]} 4... c6 {[%clk 0:01:38.8]} 5. e3 {[%clk 0:02:58]} 5...
Nbd7 {[%clk 0:01:37.6]} 6. Be2 {[%clk 0:02:57.9]} 6... dxc4 {[%clk 0:01:36]} 7.
a4 {[%clk 0:02:57.5]} 7... Bb4 {[%clk 0:01:33.3]} 8. Bxc4 {[%clk 0:02:48.7]}
8... O-O {[%clk 0:01:33]} 9. O-O {[%clk 0:02:48.2]} 9... c5 {[%clk 0:01:32]} 10.
Qe2 {[%clk 0:02:24.5]} 10... cxd4 {[%clk 0:01:31]} 11. exd4 {[%clk 0:02:22.5]}
11... Nb6 {[%clk 0:01:30.4]} 12. Bb3 {[%clk 0:02:22.3]} 12... Nbd5 {[%clk
0:01:29.8]} 13. Bd2 {[%clk 0:02:21.9]} 13... Bd6 {[%clk 0:01:20.4]} 14. Ne5
{[%clk 0:02:19.6]} 14... b6 {[%clk 0:01:17.8]} 15. Rfe1 {[%clk 0:02:11.1]} 15...
Bb7 {[%clk 0:01:16.1]} 16. Rad1 {[%clk 0:02:10]} 16... Rc8 {[%clk 0:01:14.5]}
17. Qd3 {[%clk 0:02:08.4]} 17... Nb4 {[%clk 0:01:11.9]} 18. Qh3 {[%clk 0:02:07]}
18... h6 {[%clk 0:01:03.5]} 19. Bxh6 {[%clk 0:01:24.8]} 19... Nbd5 {[%clk
0:00:55.2]} 20. Bg5 {[%clk 0:01:18.1]} 20... Be7 {[%clk 0:00:49.3]} 21. Bc2
{[%clk 0:01:11.8]} 21... g6 {[%clk 0:00:46.7]} 22. Bh6 {[%clk 0:00:56.3]} 22...
Re8 {[%clk 0:00:43.4]} 23. Nxf7 {[%clk 0:00:56.2]} 23... Qd7 {[%clk 0:00:37]}
24. Ne5 {[%clk 0:00:55]} 24... Qd6 {[%clk 0:00:31.1]} 25. Nxg6 {[%clk
0:00:52.8]} 25... Bd8 {[%clk 0:00:27.5]} 26. Re5 {[%clk 0:00:48.6]} 26... Nxc3
{[%clk 0:00:24.5]} 27. bxc3 {[%clk 0:00:48.3]} 27... Qc6 {[%clk 0:00:22.3]} 28.
Bd2 {[%clk 0:00:44.9]} 28... Nh7 {[%clk 0:00:15.4]} 29. Rh5 {[%clk 0:00:37.2]}
29... Rc7 {[%clk 0:00:15.1]} 30. Ne5 {[%clk 0:00:31.1]} 1-0

[Event "*** Titled Tuesday Blitz"]
[Site "Chess.com"]
[Date "2021.03.30"]
[Round "1"]
[White "Keranke"]
[Black "CM_rui"]
[Result "1-0"]
[WhiteElo "2784"]
[BlackElo "2417"]
[TimeControl "180+1"]
[EndTime "10:06:46 PDT"]
[Termination "Keranke won by resignation"]

1. d4 {[%clk 0:02:53.3]} 1... Nf6 {[%clk 0:02:59.9]} 2. c4 {[%clk 0:02:52.1]}
2... e6 {[%clk 0:03:00.5]} 3. g3 {[%clk 0:02:52.4]} 3... Bb4+ {[%clk 0:03:01.1]}
4. Nd2 {[%clk 0:02:52.1]} 4... O-O {[%clk 0:03:01]} 5. Bg2 {[%clk 0:02:52.5]}
5... d5 {[%clk 0:03:01.6]} 6. Qc2 {[%clk 0:02:52.2]} 6... c5 {[%clk 0:02:52.5]}
7. dxc5 {[%clk 0:02:51.6]} 7... dxc4 {[%clk 0:02:47.1]} 8. Qxc4 {[%clk
0:02:52.5]} 8... Na6 {[%clk 0:02:33.5]} 9. c6 {[%clk 0:02:52]} 9... bxc6 {[%clk
0:02:28]} 10. Bxc6 {[%clk 0:02:46.1]} 10... Rb8 {[%clk 0:02:28.3]} 11. Nf3
{[%clk 0:02:45]} 11... Qb6 {[%clk 0:02:16.3]} 12. O-O {[%clk 0:02:40.7]} 12...
Nc5 {[%clk 0:02:06.8]} 13. Ne5 {[%clk 0:02:32.1]} 13... Ba6 {[%clk 0:01:55.7]}
14. Qc2 {[%clk 0:02:14.6]} 14... Bxe2 {[%clk 0:01:55.6]} 15. Ndc4 {[%clk
0:02:11.8]} 15... Bxc4 {[%clk 0:01:53.7]} 16. Qxc4 {[%clk 0:02:12.7]} 16... Rfc8
{[%clk 0:01:47.7]} 17. a3 {[%clk 0:02:06.9]} 17... Na6 {[%clk 0:01:24.4]} 18.
axb4 {[%clk 0:01:56.2]} 18... Nxb4 {[%clk 0:01:25.3]} 19. Be3 {[%clk 0:01:55.7]}
19... Qc7 {[%clk 0:01:20.4]} 20. Bxa7 {[%clk 0:01:30.7]} 20... Qxe5 {[%clk
0:01:20.4]} 21. Bxb8 {[%clk 0:01:28.7]} 21... Qxb8 {[%clk 0:01:21.3]} 22. Ra6
{[%clk 0:01:05.9]} 22... Nxa6 {[%clk 0:01:03.5]} 23. Qxa6 {[%clk 0:01:06.8]}
23... h6 {[%clk 0:01:02.1]} 24. b4 {[%clk 0:01:05.8]} 24... Rc7 {[%clk
0:00:55.1]} 25. Rb1 {[%clk 0:00:58.9]} 25... Ng4 {[%clk 0:00:47.4]} 26. h3
{[%clk 0:00:41.7]} 26... Ne5 {[%clk 0:00:46.5]} 27. Bg2 {[%clk 0:00:41.3]} 27...
Nc4 {[%clk 0:00:33.3]} 28. b5 {[%clk 0:00:34.5]} 28... Nb6 {[%clk 0:00:32.6]}
29. Qa3 {[%clk 0:00:27.4]} 29... Qc8 {[%clk 0:00:27.8]} 30. Bc6 {[%clk
0:00:26.5]} 30... Rxc6 {[%clk 0:00:18.9]} 31. bxc6 {[%clk 0:00:26.2]} 31... Qxc6
{[%clk 0:00:19.8]} 32. Qa6 {[%clk 0:00:25.8]} 32... Qc2 {[%clk 0:00:10.6]} 33.
Qxb6 {[%clk 0:00:25.4]} 1-0

[Event "*** Titled Tuesday Blitz"]
[Site "Chess.com"]
[Date "2021.03.30"]
[Round "1"]
[White "ajdemipopushi"]
[Black "Iball95"]
[Result "0-1"]
[WhiteElo "2349"]
[BlackElo "2659"]
[TimeControl "180+1"]
[EndTime "10:06:46 PDT"]
[Termination "Iball95 won by resignation"]

1. Nf3 {[%clk 0:03:00.9]} 1... g6 {[%clk 0:02:52.8]} 2. g3 {[%clk 0:03:01]} 2...
Nf6 {[%clk 0:02:51.1]} 3. c3 {[%clk 0:03:01]} 3... Bg7 {[%clk 0:02:48.9]} 4. c4
{[%clk 0:03:01.3]} 4... O-O {[%clk 0:02:48.6]} 5. d4 {[%clk 0:03:01.6]} 5... c5
{[%clk 0:02:48.5]} 6. Bg2 {[%clk 0:03:01.6]} 6... cxd4 {[%clk 0:02:48.1]} 7.
Nxd4 {[%clk 0:03:01.6]} 7... Nc6 {[%clk 0:02:48.4]} 8. O-O {[%clk 0:03:01.6]}
8... Nxd4 {[%clk 0:02:37.5]} 9. Qxd4 {[%clk 0:03:01.2]} 9... d6 {[%clk
0:02:37.1]} 10. Qd3 {[%clk 0:03:01]} 10... Be6 {[%clk 0:02:35]} 11. Nc3 {[%clk
0:02:55.7]} 11... Rc8 {[%clk 0:02:26.9]} 12. Nd5 {[%clk 0:02:19.8]} 12... Nxd5
{[%clk 0:02:24.5]} 13. cxd5 {[%clk 0:02:20.1]} 13... Bf5 {[%clk 0:02:21.2]} 14.
e4 {[%clk 0:02:19.7]} 14... Bd7 {[%clk 0:02:20.9]} 15. Be3 {[%clk 0:02:07.1]}
15... Qa5 {[%clk 0:02:19]} 16. a4 {[%clk 0:01:03.6]} 16... a6 {[%clk 0:01:29.7]}
17. Bd4 {[%clk 0:00:59.5]} 17... Bxd4 {[%clk 0:01:24.8]} 18. Qxd4 {[%clk
0:00:59.6]} 18... Qc5 {[%clk 0:01:18.2]} 19. Rfd1 {[%clk 0:00:55.1]} 19... a5
{[%clk 0:01:10.3]} 20. Qd2 {[%clk 0:00:45]} 20... Qb6 {[%clk 0:01:05.3]} 21. Bf1
{[%clk 0:00:31.2]} 21... Rc5 {[%clk 0:01:01.9]} 22. Bd3 {[%clk 0:00:25.5]} 22...
Rfc8 {[%clk 0:01:00.1]} 23. Rdb1 {[%clk 0:00:25.8]} 23... Bh3 {[%clk 0:00:35.9]}
24. Bf1 {[%clk 0:00:17.2]} 24... Bxf1 {[%clk 0:00:34.9]} 25. Kxf1 {[%clk
0:00:17.1]} 25... Rc2 {[%clk 0:00:34.8]} 26. Qe1 {[%clk 0:00:17.3]} 26... R8c4
{[%clk 0:00:24.7]} 27. b3 {[%clk 0:00:14.1]} 27... Rxe4 {[%clk 0:00:23.5]} 0-1

[Event "*** Titled Tuesday Blitz"]
[Site "Chess.com"]
[Date "2021.03.30"]
[Round "1"]
[White "Khnykin_Nikolay"]
[Black "ukchessbomber"]
[Result "0-1"]
[WhiteElo "2042"]
[BlackElo "2497"]
[TimeControl "180+1"]
[EndTime "10:06:46 PDT"]
[Termination "ukchessbomber won on time"]

1. d4 {[%clk 0:03:00.2]} 1... Nf6 {[%clk 0:02:59.3]} 2. Nf3 {[%clk 0:02:59.5]}
2... g6 {[%clk 0:02:59.8]} 3. e3 {[%clk 0:02:57.9]} 3... Bg7 {[%clk 0:02:59.6]}
4. b3 {[%clk 0:02:55]} 4... O-O {[%clk 0:02:59.9]} 5. Bb2 {[%clk 0:02:53.8]}
5... d5 {[%clk 0:03:00.2]} 6. Nc3 {[%clk 0:02:41.8]} 6... c5 {[%clk 0:02:57.7]}
7. Be2 {[%clk 0:02:27.7]} 7... Nc6 {[%clk 0:02:51.3]} 8. Qd2 {[%clk 0:02:22.3]}
8... cxd4 {[%clk 0:02:48.6]} 9. Nxd4 {[%clk 0:02:14.9]} 9... e5 {[%clk
0:02:30.8]} 10. Nxc6 {[%clk 0:02:09.9]} 10... bxc6 {[%clk 0:02:31.7]} 11. O-O-O
{[%clk 0:02:07.6]} 11... d4 {[%clk 0:02:06.7]} 12. exd4 {[%clk 0:02:04.4]} 12...
exd4 {[%clk 0:02:07.6]} 13. Qxd4 {[%clk 0:02:03.7]} 13... Nd5 {[%clk 0:02:01.4]}
14. Qc4 {[%clk 0:01:00.8]} 14... Qg5+ {[%clk 0:01:48.6]} 15. Kb1 {[%clk
0:00:29.7]} 15... Ba6 {[%clk 0:01:01.7]} 16. Qxa6 {[%clk 0:00:16.4]} 16... Nxc3+
{[%clk 0:00:58.5]} 17. Bxc3 {[%clk 0:00:15.3]} 17... Bxc3 {[%clk 0:00:59.4]} 18.
Qc4 {[%clk 0:00:14.2]} 18... Bg7 {[%clk 0:00:58.6]} 19. Qxc6 {[%clk 0:00:14.3]}
19... Qe5 {[%clk 0:00:58.7]} 20. c3 {[%clk 0:00:12]} 20... Qxe2 {[%clk
0:00:57.6]} 21. Qf3 {[%clk 0:00:09.8]} 21... Qxf3 {[%clk 0:00:54.1]} 22. gxf3
{[%clk 0:00:09.8]} 22... Bxc3 {[%clk 0:00:55]} 23. Rc1 {[%clk 0:00:09.6]} 23...
Bd4 {[%clk 0:00:54.4]} 24. Rhf1 {[%clk 0:00:08.1]} 24... Rfe8 {[%clk 0:00:54.7]}
25. Rc2 {[%clk 0:00:07.5]} 25... Rac8 {[%clk 0:00:53.9]} 26. Rfc1 {[%clk
0:00:06.6]} 26... Rxc2 {[%clk 0:00:53.8]} 27. Rxc2 {[%clk 0:00:06.6]} 27... Re1+
{[%clk 0:00:54.5]} 28. Rc1 {[%clk 0:00:06.4]} 28... Rxc1+ {[%clk 0:00:55.2]} 29.
Kxc1 {[%clk 0:00:06.5]} 29... Bxf2 {[%clk 0:00:55.8]} 30. a4 {[%clk 0:00:06.4]}
30... Bc5 {[%clk 0:00:55.7]} 31. Kc2 {[%clk 0:00:05.5]} 31... Bb4 {[%clk
0:00:56.1]} 32. Kd3 {[%clk 0:00:05.2]} 32... a5 {[%clk 0:00:57]} 33. Kc4 {[%clk
0:00:04.8]} 33... Kg7 {[%clk 0:00:57.9]} 34. Kb5 {[%clk 0:00:03.8]} 34... Kf6
{[%clk 0:00:58.8]} 35. Kc4 {[%clk 0:00:03.8]} 35... h5 {[%clk 0:00:59.7]} 36.
Kd3 {[%clk 0:00:03.9]} 36... Kg5 {[%clk 0:01:00.6]} 37. Ke3 {[%clk 0:00:03.6]}
37... f5 {[%clk 0:01:01.3]} 38. Kf2 {[%clk 0:00:03.2]} 38... f4 {[%clk
0:01:02.2]} 39. Kg2 {[%clk 0:00:02.8]} 39... Kf5 {[%clk 0:01:03.1]} 40. Kf2
{[%clk 0:00:02]} 40... g5 {[%clk 0:01:04]} 41. Ke2 {[%clk 0:00:01.4]} 41... g4
{[%clk 0:01:04.9]} 42. Kf2 {[%clk 0:00:01.7]} 42... h4 {[%clk 0:01:05.8]} 43.
Kg2 {[%clk 0:00:01.5]} 43... h3+ {[%clk 0:01:06.3]} 44. Kf2 {[%clk 0:00:01.6]}
44... Bc5+ {[%clk 0:01:07.2]} 0-1